bitfinex/quotes_ETHUSD_20251120
["timestamp","ask_amount","ask_price","bid_price","bid_amount"]
[1763653412189,0.4537,2989.7,2989.0,0.77144176]
[1763653413079,3.65666473,2990.1,2989.1,0.1162]
[1763653413392,0.4537,2990.0,2989.1,0.1162]
[1763653413585,0.4537,2990.0,2989.1,0.2322]
[1763653413787,3.79822406,2990.0,2989.1,3.57767295]
[1763653414106,3.65666473,2990.1,2989.2,0.90511147]
[1763653414107,0.3122,2990.1,2989.2,0.90511147]
[1763653414264,0.7659,2990.1,2989.2,0.43491147]
[1763653414463,0.3122,2990.1,2989.2,7.86389569]
[1763653415334,0.3122,2990.1,2989.2,0.43491147]
[1763653415335,0.4537,2990.0,2989.2,0.43491147]
[1763653415623,0.4537,2990.0,2989.1,3.461676]
[1763653415823,0.3122,2990.1,2989.1,10.2686532]
[1763653415992,0.116,2990.1,2989.2,0.4702]
[1763653416193,0.002,2990.6,2990.0,0.4665]
[1763653416394,0.002,2990.6,2990.1,0.1871]
[1763653416840,0.002,2990.6,2990.2,0.4702]
[1763653416994,0.002,2990.6,2990.5,0.4665]
[1763653418123,0.002,2990.6,2990.3,0.116]
[1763653418325,0.002,2990.6,2990.1,0.1871]
[1763653418528,0.002,2990.6,2990.3,0.116]
[1763653418702,0.002,2990.6,2990.5,0.4941]
[1763653419294,0.002,2990.6,2990.5,0.9565]
[1763653419710,0.002,2990.6,2990.5,4.70592642]
[1763653420134,0.002,2990.6,2990.5,4.74501506]
[1763653420545,0.002,2990.6,2990.5,4.86101506]
[1763653420741,0.002,2990.6,2990.5,0.5560199]
[1763653420894,0.002,2990.6,2990.2,3.34420638]
[1763653421099,0.002,2990.6,2990.2,0.90699264]
[1763653421296,0.4839,2990.5,2989.8,0.1871]
[1763653421501,0.002,2990.6,2989.9,0.90699264]
[1763653421932,0.002,2990.6,2990.0,3.3444816]
[1763653422103,0.002,2990.6,2990.0,7.89681291]
[1763653423034,0.002,2990.6,2990.0,4.08993131]
[1763653423200,0.002,2990.6,2989.8,0.3031]
[1763653423201,0.002,2990.6,2989.8,0.1871]
[1763653423401,0.6874,2989.9,2989.1,1.31362457]
[1763653423701,0.5999,2990.5,2989.2,1.02299264]
[1763653423914,3.82793424,2990.4,2989.4,0.90699264]
[1763653424120,7.17196848,2990.4,2989.4,0.90699264]
[1763653424402,0.4839,2990.3,2989.4,0.77135222]
[1763653424630,0.4839,2990.3,2989.3,3.46126477]
[1763653424801,0.4839,2990.3,2989.4,0.90699264]
[1763653425002,0.4839,2990.3,2989.2,4.25230226]
[1763653425212,0.4839,2990.3,2989.3,0.90699264]
[1763653425815,0.4839,2990.3,2989.1,0.1172]
[1763653426017,0.4839,2990.3,2989.2,0.116]
[1763653426018,3.3442579,2990.2,2989.2,0.116]
[1763653426216,0.116,2990.5,2989.3,0.39132113]
[1763653426743,0.116,2990.5,2989.4,0.4624]
[1763653426922,0.116,2990.5,2989.5,0.116]
[1763653427342,0.116,2990.5,2989.5,0.5784]
[1763653427927,3.45998775,2990.5,2989.6,6.80585816]
[1763653428132,0.4839,2990.4,2989.7,0.72682582]
[1763653428436,0.4839,2990.4,2989.6,0.116]
[1763653428639,0.4839,2990.4,2989.3,0.35786849]
[1763653428842,0.4839,2990.4,2989.3,0.90699264]
[1763653430041,0.6874,2989.4,2989.1,0.001]
[1763653430253,6.68829214,2990.3,2989.1,0.1172]
[1763653430448,0.1963,2989.8,2989.1,0.1172]
[1763653430644,0.1963,2989.8,2989.2,0.90699264]
[1763653430845,0.4839,2989.7,2989.1,0.001]
[1763653431146,0.1963,2989.8,2989.1,0.1172]
[1763653431442,0.6802,2989.8,2989.1,0.1172]
[1763653431627,0.6802,2989.8,2989.1,0.001]
[1763653431831,0.4839,2989.7,2989.1,0.001]
[1763653432046,0.4911,2989.2,2989.1,0.001]
[1763653432540,0.975,2989.2,2989.1,0.001]
[1763653432747,0.4911,2989.2,2989.1,0.001]
[1763653433244,0.1963,2989.8,2989.1,0.6113]
[1763653433444,4.14092719,2989.8,2989.1,0.001]
[1763653433738,0.4911,2989.2,2989.1,0.001]
[1763653434869,0.4839,2989.4,2989.1,0.001]
[1763653435459,3.65707449,2989.8,2989.1,0.1172]
[1763653435671,0.3123,2989.8,2989.2,0.03345376]
[1763653435873,0.3123,2989.8,2989.1,0.1172]
[1763653436064,0.3123,2989.8,2989.2,3.34537668]
[1763653436269,0.3123,2989.8,2989.2,0.72703857]
[1763653436637,0.4911,2989.3,2989.2,0.72703857]
[1763653436962,4.14093007,2989.8,2989.1,3.34648478]
[1763653437141,4.14093007,2989.8,2989.1,3.3464722]
[1763653437841,4.14093007,2989.8,2989.1,0.001]
[1763653438864,0.7962,2989.8,2989.1,0.001]
[1763653439067,0.116,2989.8,2989.2,0.78542011]
[1763653439236,3.46070853,2989.8,2989.2,0.78542011]
[1763653439443,3.94460853,2989.8,2989.1,0.1172]
[1763653440288,0.4839,2989.7,2989.1,0.001]
[1763653440775,0.4839,2989.7,2989.1,3.34643895]
[1763653441165,0.1152,2989.8,2989.1,3.46263895]
[1763653441356,0.002,2990.3,2989.7,0.4941]
[1763653441593,0.002,2990.3,2989.8,0.4941]
[1763653442201,0.002,2990.3,2990.2,0.4941]
[1763653443127,0.002,2990.3,2990.2,3.16085424]
[1763653443409,0.002,2990.3,2990.2,1.68968942]
[1763653443783,0.002,2990.9,2990.5,0.405504]
[1763653443971,0.002,2990.9,2990.8,0.4941]
[1763653444170,0.002,2990.9,2990.8,4.74467964]
[1763653444372,0.002,2990.9,2990.8,5.20707964]
[1763653444669,0.002,2990.9,2990.8,6.25354482]
[1763653444872,0.002,2990.9,2990.8,2.90995782]
[1763653445100,0.002,2990.9,2990.8,4.86067964]
[1763653445287,0.002,2990.9,2990.8,6.05837836]
[1763653445492,0.002,2990.9,2990.8,5.32307964]
[1763653446005,0.002,2990.9,2990.8,6.52077836]
[1763653446208,0.002,2990.9,2990.8,5.32307964]
[1763653446391,0.002,2990.9,2990.8,6.36954482]
[1763653447315,0.002,2990.9,2990.8,7.5653441]
[1763653447712,0.002,2990.9,2990.8,5.90714482]
[1763653448306,0.002,2990.9,2990.8,5.79114482]
[1763653448506,0.002,2990.9,2990.8,5.90714482]
[1763653448814,0.002,2990.9,2990.8,6.36204482]
[1763653449125,0.002,2990.9,2990.8,5.90714482]
[1763653449326,0.002,2990.9,2990.8,5.29704482]
[1763653449622,0.002,2990.9,2990.8,4.25057964]
[1763653449826,0.002,2990.9,2990.8,0.90699264]
[1763653450038,0.002,2990.9,2990.8,1.37879264]
[1763653450205,0.002,2990.9,2990.8,5.17727964]
[1763653450406,0.002,2990.9,2990.8,6.04097742]
[1763653451032,0.002,2990.9,2990.8,5.58607742]
[1763653451390,0.002,2990.9,2990.8,1.77069042]
[1763653451627,0.002,2990.9,2990.8,4.25057964]
[1763653452860,0.6635,2990.9,2990.3,6.68829214]
[1763653453027,0.6635,2990.9,2990.5,0.116]
[1763653453328,0.002,2990.9,2990.8,0.4718]
[1763653453491,0.002,2990.9,2990.6,0.0334381]
[1763653453691,0.002,2990.9,2990.8,0.4718]
[1763653453939,0.002,2990.9,2990.5,0.68042921]
[1763653454112,0.002,2990.9,2990.8,0.116]
[1763653454310,0.002,2990.9,2990.8,0.5878]
[1763653454512,0.002,2990.9,2990.8,1.0427]
[1763653454740,0.002,2990.9,2990.8,3.459587]
[1763653454897,0.002,2990.9,2990.8,4.13991542]
[1763653456147,0.002,2990.9,2990.8,0.68032842]
[1763653456444,0.002,2990.9,2990.3,3.34414607]
[1763653456672,1.1516,2990.9,2990.6,0.90699264]
[1763653456829,1.1516,2990.9,2990.1,1.19579928]
[1763653457028,0.2609,2990.6,2990.1,0.116]
[1763653457239,0.2609,2990.6,2990.1,0.79649632]
[1763653457460,0.6744,2990.9,2990.1,1.25139632]
[1763653457672,0.6744,2990.9,2990.1,0.68049632]
[1763653457866,0.4881,2990.8,2990.5,0.001]
[1763653458389,0.4772,2990.6,2990.5,0.001]
[1763653458877,0.9653,2990.6,2990.5,0.001]
[1763653461143,0.7904,2990.9,2990.5,0.001]
[1763653461343,0.4881,2990.8,2990.5,0.001]
[1763653461660,0.4772,2990.6,2990.5,0.001]
[1763653462179,0.9653,2990.6,2990.5,0.001]
[1763653463362,0.1863,2990.9,2990.5,0.001]
[1763653463565,0.6744,2990.9,2990.5,0.001]
[1763653463738,0.4772,2990.6,2990.5,0.001]
[1763653464291,0.9645,2990.6,2990.5,0.001]
[1763653468062,1.31249664,2990.5,2990.2,0.001]
[1763653468252,0.2609,2990.3,2990.2,0.001]
[1763653468452,0.749,2990.3,2990.2,0.001]
[1763653468653,0.2609,2990.3,2990.2,0.001]
[1763653468866,0.6041,2990.7,2990.2,0.001]
[1763653470585,3.94781948,2990.7,2990.2,0.001]
[1763653470770,0.6041,2990.7,2990.2,0.001]
[1763653470974,0.4959,2990.3,2990.2,0.001]
[1763653471727,0.4721,2990.6,2990.2,0.001]
[1763653472086,0.116,2990.7,2990.2,0.001]
[1763653473007,0.4721,2990.6,2990.2,0.001]
[1763653473516,0.116,2990.7,2990.2,0.001]
[1763653473517,0.116,2990.7,2990.2,0.33553697]
[1763653474418,0.5881,2990.7,2990.2,0.33553697]
[1763653475412,0.5881,2990.7,2990.2,6.68942854]
[1763653475717,0.116,2990.7,2990.2,3.34517064]
[1763653476088,0.116,2990.7,2990.2,6.68942854]
[1763653476613,0.116,2990.7,2990.2,3.34517064]
[1763653477525,0.5881,2990.7,2990.2,3.34517064]
[1763653477724,0.5881,2990.7,2990.2,4.14530113]
[1763653478224,0.116,2990.7,2990.2,0.80113049]
[1763653478724,0.002,2990.9,2990.3,0.479]
[1763653478925,0.002,2990.9,2990.4,1.19579928]
[1763653479311,0.002,2990.9,2990.5,0.479]
[1763653479510,0.002,2990.7,2990.6,3.51121486]
[1763653479906,0.002,2990.7,2990.6,0.64037993]
[1763653480107,0.002,2990.7,2990.6,0.4729]
[1763653480335,0.002,2990.7,2990.5,3.34386969]
[1763653482013,0.002,2990.7,2990.4,1.19579928]
[1763653482543,0.002,2990.7,2990.6,1.66869928]
[1763653483542,0.002,2990.7,2990.6,2.14769928]
[1763653483845,0.002,2990.7,2990.6,2.73205985]
[1763653484149,0.002,2990.7,2990.6,1.06336057]
[1763653484352,0.002,2990.7,2990.6,4.53960988]
[1763653484526,0.002,2990.7,2990.6,1.19579928]
[1763653485343,0.002,2990.7,2990.6,1.66869928]
[1763653486144,0.002,2990.7,2990.6,5.49150988]
[1763653486346,0.002,2990.7,2990.6,4.2957106]
[1763653486545,0.002,2990.7,2990.6,5.78476508]
[1763653488426,0.0012,2990.7,2990.6,5.62056493]
[1763653488915,0.0012,2990.7,2990.6,2.27675433]
[1763653489118,0.0012,2990.7,2990.6,3.3438106]
[1763653490119,0.4697,2990.7,2990.5,2.71084697]
[1763653490938,0.0012,2990.7,2990.5,3.66223852]
[1763653491338,0.4685,2990.6,2990.5,3.66223852]
[1763653491538,0.491,2990.7,2990.5,3.66223852]
[1763653491539,0.0012,2990.7,2990.5,3.66223852]
[1763653492248,0.0012,2990.7,2990.6,3.3438106]
[1763653492616,0.4697,2990.7,2990.5,3.66223852]
[1763653492817,0.2611,2990.6,2990.5,1.80385433]
[1763653493132,0.491,2990.7,2990.5,1.20219109]
[1763653493133,0.0012,2990.7,2990.5,1.20219109]
[1763653493328,0.4685,2990.6,2990.5,1.20219109]
[1763653493854,0.4685,2990.6,2990.4,1.20219109]
[1763653494316,0.4685,2990.6,2990.5,3.34392242]
[1763653494716,0.4898,2990.5,2990.4,1.20219109]
[1763653494934,0.4685,2990.5,2990.2,0.001]
[1763653498630,0.7509,2990.3,2990.2,0.001]
[1763653500461,0.0012,2990.7,2990.2,0.9529]
[1763653500640,0.0012,2990.7,2990.6,0.4729]
[1763653500966,0.491,2990.7,2990.6,1.20231001]
[1763653501167,0.9595,2990.7,2990.5,1.20231001]
[1763653501362,0.2611,2990.4,2990.2,0.001]
[1763653501537,7.1784436,2990.7,2990.1,0.001]
[1763653501538,0.5814,2990.3,2990.1,0.001]
[1763653501756,0.5814,2990.3,2989.9,0.001]
[1763653501757,0.2622,2990.2,2989.9,0.001]
[1763653501961,0.2622,2990.2,2989.1,1.20331001]
[1763653501962,0.405504,2989.9,2989.1,1.20331001]
[1763653502165,0.4898,2990.2,2989.1,0.001]
[1763653502166,0.4535,2989.7,2989.1,0.001]
[1763653502358,4.70530984,2989.7,2989.1,0.001]
[1763653502687,5.19510984,2989.7,2989.1,0.001]
[1763653503690,0.405504,2989.5,2989.1,0.001]
[1763653503846,0.405504,2989.1,2989.0,0.001]
[1763653504053,0.669704,2989.1,2989.0,0.001]
[1763653504395,5.41198524,2989.1,2989.0,0.001]
[1763653504682,0.869,2989.1,2989.0,0.001]
[1763653504983,0.3792,2989.1,2989.0,0.001]
[1763653505284,0.869,2989.1,2989.0,0.001]
[1763653505647,4.0994886,2989.1,2989.0,0.001]
[1763653505844,0.754,2989.1,2989.0,0.001]
[1763653506051,0.115,2989.4,2989.0,0.001]
[1763653506548,0.4685,2989.1,2989.0,0.001]
[1763653506778,0.4898,2989.3,2989.0,0.001]
[1763653506948,0.4685,2989.1,2989.0,0.001]
[1763653507349,0.9583,2989.1,2989.0,0.001]
[1763653507886,0.9583,2989.1,2988.8,0.001]
[1763653507887,1.55033326,2989.1,2988.8,0.001]
[1763653508052,0.6567,2988.9,2988.8,0.001]
[1763653508559,0.3007,2988.7,2988.5,0.001]
[1763653508761,0.863504,2988.8,2987.1,1.33061001]
[1763653508762,0.405504,2988.5,2987.1,0.1283]
[1763653508987,0.405504,2988.5,2986.9,3.46294756]
[1763653509152,0.405504,2988.3,2986.9,3.46294756]
[1763653509391,0.405504,2988.1,2986.8,0.001]
[1763653509591,0.405504,2988.1,2986.8,3.34905778]
[1763653509798,0.458,2988.0,2986.9,0.39410578]
[1763653510129,0.458,2988.0,2987.0,0.5104784]
[1763653510303,0.1973,2987.9,2987.1,0.1293]
[1763653510618,3.34694423,2987.8,2987.1,3.47691682]
[1763653510818,0.458,2987.7,2986.9,3.34795272]
[1763653510984,0.458,2987.7,2986.8,0.001]
[1763653511188,0.573,2987.7,2986.8,0.001]
[1763653511886,0.115,2987.7,2986.8,17.34330873]
[1763653512087,0.1973,2988.3,2987.2,6.8211584]
[1763653512309,0.1973,2988.3,2986.8,10.52215033]
[1763653512310,0.5722,2988.2,2986.8,3.34906481]
[1763653512517,6.69344042,2988.0,2986.9,0.33490648]
[1763653512927,3.34672021,2988.0,2986.9,0.81190648]
[1763653513093,0.458,2988.1,2987.0,0.0334784]
[1763653513300,0.458,2988.1,2987.0,0.477]
[1763653513496,0.1142,2988.2,2987.1,0.1293]
[1763653513701,3.91871341,2988.2,2987.1,0.1293]
[1763653513917,7.26522682,2988.2,2987.1,0.1293]
[1763653514089,0.458,2988.1,2987.1,0.1293]
[1763653514619,0.1142,2988.2,2987.2,6.69523298]
[1763653514923,3.53610947,2988.9,2987.3,8.32015104]
[1763653514924,3.99412398,2988.9,2987.3,8.32015104]
[1763653515088,1.47999264,2988.8,2987.3,8.32015104]
[1763653515291,0.115,2988.8,2987.7,6.8211584]
[1763653515498,0.115,2988.8,2987.8,1.70410848]
[1763653515710,0.115,2988.8,2987.8,2.18110848]
[1763653515922,0.1903,2988.9,2987.9,0.477]
[1763653516089,0.573,2989.3,2988.0,0.0334672]
[1763653516291,0.573,2989.3,2987.9,0.477]
[1763653516292,0.458,2989.2,2988.1,6.8211584]
[1763653516491,0.458,2989.2,2987.7,0.90699264]
[1763653516492,0.90699264,2989.0,2987.4,0.90699264]
[1763653516722,0.405504,2988.8,2987.4,0.90699264]
[1763653516922,0.405504,2988.8,2987.4,1.38399264]
[1763653516923,0.115,2988.7,2987.4,1.38399264]
[1763653517127,0.405504,2988.6,2987.2,4.25460913]
[1763653517291,0.405504,2988.6,2987.3,0.90699264]
[1763653517488,0.405504,2988.6,2987.4,0.76022256]
[1763653517489,0.458,2988.5,2987.4,0.76022256]
[1763653517695,0.115,2988.7,2987.4,1.23722256]
[1763653517894,0.115,2988.7,2987.5,0.477]
[1763653518201,0.115,2988.7,2987.6,0.115]
[1763653518523,0.115,2988.7,2987.6,10.04150487]
[1763653518819,0.115,2988.7,2987.7,2.22246633]
[1763653519327,0.115,2988.7,2987.8,0.477]
[1763653519494,3.91896795,2988.7,2987.7,1.74546633]
[1763653520294,3.91896795,2988.7,2987.6,6.80933658]
[1763653520512,0.458,2988.6,2987.6,6.80933658]
[1763653520746,7.15011887,2988.6,2987.5,6.69451491]
[1763653521026,7.15011887,2988.6,2987.5,6.80951491]
[1763653521204,0.458,2988.5,2987.5,6.69451491]
[1763653521401,0.458,2988.5,2987.6,0.74547375]
[1763653522425,0.90699264,2988.5,2987.3,6.8211584]
[1763653522625,1.36499264,2988.5,2987.3,6.8211584]
[1763653522812,4.25321216,2988.5,2987.4,6.69478476]
[1763653523136,0.458,2988.4,2987.5,0.115]
[1763653523301,0.458,2988.4,2987.4,3.34739238]
[1763653523504,0.405504,2988.3,2987.2,3.34759837]
[1763653523807,0.458,2988.7,2987.3,7.72815104]
[1763653524115,1.47999264,2988.7,2987.3,8.20515104]
[1763653524628,0.458,2988.6,2987.3,8.20515104]
[1763653524833,0.1973,2988.9,2987.7,6.8211584]
[1763653525290,3.5430608,2988.9,2987.8,0.477]
[1763653525492,4.0010608,2988.9,2987.5,0.90699264]
[1763653525715,0.458,2988.8,2987.5,0.90699264]
[1763653525920,0.458,2988.8,2987.5,1.38399264]
[1763653526228,0.458,2988.8,2987.6,1.3365968]
[1763653526438,0.458,2988.8,2987.6,1.8135968]
[1763653526616,0.458,2988.8,2987.8,0.90699264]
[1763653526617,0.115,2988.8,2987.8,0.90699264]
[1763653526796,0.115,2988.8,2987.9,10.04049666]
[1763653526997,3.46084218,2988.8,2988.0,1.09474893]
[1763653527336,0.4786,2988.1,2987.4,1.20231001]
[1763653527532,0.90699264,2988.7,2987.0,3.34784064]
[1763653527533,0.8528,2988.0,2987.0,3.34784064]
[1763653527840,0.4766,2987.5,2986.9,0.001]
[1763653528091,0.115,2987.4,2986.9,0.001]
[1763653528534,0.90699264,2988.7,2986.9,0.001]
[1763653528535,0.458,2987.7,2986.9,0.001]
[1763653528834,0.115,2987.6,2986.9,0.001]
[1763653529337,6.69456066,2987.5,2986.9,0.001]
[1763653529494,3.80418033,2987.5,2986.9,0.001]
[1763653529698,0.4569,2987.5,2986.9,0.001]
[1763653530011,0.4531,2987.0,2986.9,0.001]
[1763653530319,0.5719,2987.4,2986.9,0.001]
[1763653530632,0.4569,2987.3,2986.9,0.001]
[1763653530952,0.4531,2987.0,2986.9,0.001]
[1763653531157,0.115,2987.1,2986.9,0.001]
[1763653531443,0.5719,2987.3,2986.9,0.001]
[1763653532239,0.4569,2987.8,2986.9,0.001]
[1763653532399,0.115,2987.5,2986.9,0.001]
[1763653533026,0.5719,2987.5,2986.9,0.001]
[1763653533231,3.34739238,2987.4,2986.9,0.001]
[1763653533430,3.80429238,2987.4,2986.9,0.001]
[1763653533628,3.46231966,2987.5,2986.9,0.001]
[1763653533815,0.4569,2987.4,2986.9,0.001]
[1763653534140,0.4531,2987.0,2986.9,0.001]
[1763653534436,0.4569,2987.4,2986.9,0.001]
[1763653534642,0.115,2987.3,2986.9,0.001]
[1763653534937,0.4569,2987.4,2986.9,0.001]
[1763653535244,0.115,2987.2,2986.9,0.001]
[1763653536343,3.34585325,2988.8,2986.9,0.001]
[1763653536344,0.115,2987.1,2986.9,0.001]
[1763653536517,3.34622805,2988.5,2986.9,0.001]
[1763653536518,0.115,2987.3,2986.9,0.001]
[1763653538040,0.4531,2987.0,2986.9,0.001]
[1763653538547,0.9299,2987.0,2986.9,0.001]
[1763653539414,4.27774064,2987.0,2986.9,0.001]
[1763653539619,0.9299,2987.0,2986.9,0.001]
[1763653540712,0.4768,2987.4,2986.9,0.001]
[1763653540916,0.115,2987.3,2986.9,0.001]
[1763653541347,0.90699264,2987.5,2986.9,0.001]
[1763653541554,3.46263716,2987.2,2986.9,0.001]
[1763653541933,0.115,2987.2,2986.9,0.001]
[1763653542717,0.4768,2987.8,2987.1,0.6043]
[1763653542922,0.115,2987.7,2987.1,0.6043]
[1763653543358,0.5918,2987.7,2987.1,0.1293]
[1763653543561,0.90699264,2987.6,2987.1,0.1293]
[1763653543724,3.82392222,2987.7,2987.1,0.81524751]
[1763653543926,3.7520277,2988.2,2987.1,1.29764751]
[1763653543927,0.4768,2988.2,2987.1,1.29764751]
[1763653544264,10.03848084,2988.5,2987.1,0.81524751]
[1763653544265,0.5918,2988.1,2987.1,0.81524751]
[1763653544587,0.4768,2988.5,2987.2,0.4824]
[1763653544873,0.4768,2988.5,2987.4,6.8211584]
[1763653545025,3.34804831,2988.6,2987.5,0.4824]
[1763653545224,1.02199264,2988.5,2987.5,0.4824]
[1763653545430,1.49879264,2988.5,2987.5,0.4824]
[1763653545670,0.5918,2988.5,2987.6,6.69433658]
[1763653545824,3.9379768,2988.5,2987.7,0.71767366]
[1763653546165,1.31249664,2988.4,2987.3,0.22046401]
[1763653546471,0.4588,2987.7,2987.1,4.16295703]
[1763653546776,0.405504,2988.2,2987.1,7.51068559]
[1763653547061,0.115,2988.1,2987.1,7.51068559]
[1763653547264,0.4768,2988.2,2987.1,7.51068559]
[1763653547573,0.115,2988.0,2987.2,0.4824]
[1763653547724,0.115,2988.0,2987.3,6.69500886]
[1763653548060,0.115,2988.0,2987.4,0.71774089]
[1763653549230,0.002,2988.6,2987.9,0.475]
[1763653549424,0.002,2988.6,2987.5,0.4824]
[1763653549425,0.5918,2988.5,2987.5,0.4824]
[1763653549746,3.34627225,2988.4,2987.5,6.69456066]
[1763653550062,6.6925445,2988.4,2987.4,0.71774089]
[1763653550231,0.4768,2988.3,2987.4,7.17714237]
[1763653550431,6.80740402,2988.5,2987.4,7.17714237]
[1763653550432,0.115,2988.5,2987.4,6.69474237]
[1763653550759,1.38379264,2988.4,2987.5,0.4824]
[1763653551126,0.90699264,2988.4,2987.5,0.4824]
[1763653551360,0.115,2988.3,2987.5,0.4824]
[1763653551562,0.115,2988.3,2987.6,1.05245348]
[1763653551859,0.115,2988.3,2987.6,4.39958638]
[1763653552057,0.115,2988.3,2987.6,7.17670119]
[1763653552768,0.002,2988.4,2988.2,0.6651]
[1763653552954,0.002,2988.4,2987.7,7.3035584]
[1763653553554,0.002,2988.4,2987.6,4.54944291]
[1763653553758,0.002,2988.4,2987.6,6.69430119]
[1763653553957,0.002,2988.4,2988.3,0.6651]
[1763653554770,0.002,2988.4,2988.3,1.1475]
[1763653554971,0.002,2988.4,2988.3,0.6651]
[1763653555360,0.002,2988.4,2988.3,1.1475]
[1763653555739,0.002,2988.4,2988.3,4.01148423]
[1763653555946,0.002,2988.4,2988.3,4.74728159]
[1763653556173,0.4608,2988.4,2987.8,3.34691408]
[1763653556359,0.002,2988.4,2987.8,6.69385831]
[1763653556556,0.002,2988.4,2987.9,0.4824]
[1763653557158,0.002,2988.4,2987.7,1.12438734]
[1763653557334,0.002,2988.4,2987.7,3.34705626]
[1763653557536,0.5938,2988.4,2987.6,7.89660957]
[1763653557742,0.117,2988.4,2987.6,8.37900957]
[1763653557959,3.46328524,2988.4,2987.6,8.37900957]
[1763653558159,3.46328524,2988.4,2987.6,7.17669956]
[1763653558160,0.117,2988.4,2987.6,7.17669956]
[1763653558358,0.002,2988.4,2987.7,1.32030096]
[1763653558558,0.002,2988.4,2987.7,2.52261097]
[1763653558759,0.002,2988.4,2987.8,0.4824]
[1763653558959,0.002,2988.4,2988.3,0.6651]
[1763653559341,0.002,2988.4,2988.3,0.475]
[1763653560365,0.0012,2988.4,2988.3,0.475]
[1763653560668,0.0012,2988.4,2988.3,1.74144924]
[1763653560873,0.0012,2988.4,2988.3,1.25904924]
[1763653561070,0.0012,2988.4,2988.3,1.74144924]
[1763653561274,0.0012,2988.4,2988.3,1.25904924]
[1763653561479,0.002,2988.6,2988.3,1.77491308]
[1763653561677,0.002,2988.6,2988.5,8.20315104]
[1763653561905,0.002,2988.6,2988.5,12.14671132]
[1763653562477,0.002,2988.6,2988.5,13.34469349]
[1763653562878,0.002,2988.6,2988.5,12.14671132]
[1763653563252,0.002,2988.6,2988.5,13.94354612]
[1763653563464,0.002,2988.6,2988.5,15.79578997]
[1763653563977,0.002,2989.0,2988.8,0.475]
[1763653564180,0.1818,2990.3,2988.9,10.1136341]
[1763653564479,0.002,2990.9,2989.1,7.42384502]
[1763653564778,0.002,2990.9,2989.7,1.19523504]
[1763653564779,0.4768,2990.6,2989.7,1.19523504]
[1763653564994,0.4768,2990.6,2989.5,1.79285257]
[1763653564995,0.4768,2990.6,2989.5,1.19523504]
[1763653565143,0.4768,2990.6,2989.4,1.19523504]
[1763653565347,0.4768,2990.6,2989.3,0.115]
[1763653565651,0.4768,2990.6,2989.4,0.4824]
[1763653565856,0.4768,2990.6,2989.3,3.46025725]
[1763653565857,6.68784484,2990.5,2989.3,3.46025725]
[1763653566168,0.405504,2990.4,2989.2,0.90699264]
[1763653566373,0.882304,2990.4,2989.2,0.90699264]
[1763653566899,0.4768,2990.3,2989.1,4.37058124]
[1763653567086,0.4768,2990.3,2989.1,7.71606984]
[1763653567687,0.115,2990.2,2989.1,7.71606984]
[1763653567909,0.0012,2990.7,2989.2,0.4824]
[1763653568108,0.4768,2990.6,2989.3,0.90699264]
[1763653568315,0.0012,2990.7,2989.7,7.13078733]
[1763653568628,0.0012,2990.7,2989.8,1.47339264]
[1763653568914,0.0012,2990.7,2990.6,0.487]
[1763653569209,0.0012,2990.7,2990.3,0.115]
[1763653569372,0.0012,2990.7,2989.8,0.90699264]
[1763653569729,0.4822,2990.7,2989.9,0.115]
[1763653569877,0.6663,2989.9,2989.2,3.34529742]
[1763653570216,0.90699264,2990.6,2989.2,6.6906741]
[1763653570217,0.90899264,2990.6,2989.2,6.6906741]
[1763653570429,0.90899264,2990.6,2989.1,0.1191]
[1763653570430,0.405504,2990.4,2989.1,0.1191]
[1763653570574,0.405504,2990.4,2989.1,0.001]
[1763653570886,0.405504,2990.2,2989.1,0.001]
[1763653571222,0.405504,2990.0,2989.1,0.001]
[1763653571426,0.1814,2989.2,2989.1,0.001]
[1763653571574,0.1814,2989.9,2989.1,0.001]
[1763653571779,0.4849,2989.2,2989.1,0.001]
[1763653572274,0.9659,2989.2,2989.1,0.001]
[1763653572474,0.4849,2989.2,2989.1,0.001]
[1763653572696,0.115,2989.7,2989.1,0.001]
[1763653572907,0.4849,2989.2,2989.1,0.001]
[1763653573304,0.9659,2989.2,2989.1,0.001]
[1763653573614,1.371404,2989.2,2989.1,0.001]
[1763653573912,4.71678068,2989.2,2989.1,0.001]
[1763653574118,0.405504,2989.1,2988.9,0.001]
[1763653574320,0.405504,2988.6,2986.5,1.19623504]
[1763653574617,0.1814,2988.7,2986.5,0.001]
[1763653574618,0.4826,2987.0,2986.5,0.001]
[1763653574782,0.1814,2988.7,2986.5,3.34938149]
[1763653574783,0.405504,2988.5,2986.5,3.34938149]
[1763653574979,0.4849,2987.0,2986.5,0.001]
[1763653575179,0.890404,2987.0,2986.5,0.001]
[1763653575417,0.405504,2986.6,2984.6,0.1911]
[1763653575716,0.1814,2985.7,2984.6,0.1911]
[1763653575915,0.115,2986.5,2984.6,0.1911]
[1763653575916,0.115,2985.8,2984.7,0.4849042]
[1763653576114,0.115,2985.8,2984.8,1.07276024]
[1763653576413,0.1814,2985.7,2984.7,0.90699264]
[1763653576625,0.6624,2985.7,2984.6,4.44862537]
[1763653576780,0.2964,2986.0,2984.7,0.4514]
[1763653576983,0.2964,2986.0,2984.8,1.16010908]
[1763653577185,0.481,2985.9,2984.8,1.16010908]
[1763653577396,0.481,2985.9,2984.6,0.1911]
[1763653577397,0.405504,2985.8,2984.6,0.1911]